Cogmind - Beta 17.1 @@@ ROGUE MODE // 2026.09.24 @ 19:34:54 Player: acra Result: Destroyed by P-70 Sage with Tesla Rifle Performance ------------- Evolutions (6) 3000 Regions Visited (7) 1400 Robots Destroyed (7) 35 Value Destroyed (191) 191 Prototype IDs (3) 60 Alien Tech Used (0) 0 Bonus (0) 0 TOTAL SCORE: 4686 Bonus ------- None Cogmind --------- Core Integrity 0/1150 Matter 293/300 Energy 99/100 System Corruption 4% Temperature Cool (0) Movement Core (50) Location -4/Factory Parts ------- > --- POWER (2) -------- (None) > --- PROPULSION (4) --- (None) > --- UTILITY (7) ------ Advanced Targeting Computer > --- WEAPON (6) ------- (None) > --- INVENTORY (5) ---- Light Angular Momentum Engine Advanced VSS Leg Advanced Thermal Generator High-powered Shock Rifle Peak State ------------ > --- POWER ------------ Light Ion Engine Antimatter Reactor > --- PROPULSION ------- Improved Medium Treads Aluminum Leg Aluminum Leg > --- UTILITY ---------- Advanced Power Amplifier Improved Heat Sink Small Storage Unit Advanced Targeting Computer Advanced Targeting Computer Hacking Suite Improved Hacking Suite > --- WEAPON ----------- Particle Gun Particle Gun Particle Gun Particle Gun > --- INVENTORY -------- Light Angular Momentum Engine Wheel Advanced Thermal Generator High-powered Shock Rifle Particle Gun Thermic Laser [Rating: 50] Favorites ----------- Power Light Ion Engine Engine Light Ion Engine Reactor Antimatter Reactor Propulsion Aluminum Leg Treads Improved Medium Treads Leg Aluminum Leg Wheel Wheel Utility Advanced Targeting Computer Device Improved Heat Sink Storage Small Storage Unit Processor Advanced Targeting Computer Hackware Hacking Suite Weapon Particle Gun Energy Gun Particle Gun Ballistic Gun Light Assault Rifle Impact Weapon Power Maul Build | -11 -10 -10 -7 -5 -5 -5 -4 ------- Run | Yrd Mat Sub Scr Fac Upp Upp Fac Slots Evolved 12 | . . . . 10 . . 2 Power 1 | . . . . 1 . . . Propulsion 2 | . . . . 2 . . . Utility 5 | . . . . 5 . . . Weapon 4 | . . . . 2 . . 2 Parts Attached 34 | 6 6 . 1 9 3 . 9 Power 6 | 1 2 . . 1 1 . 1 Engine 5 | 1 2 . . . 1 . 1 Core . | . . . . . . . . Reactor 1 | . . . . 1 . . . Propulsion 7 | 2 1 . . 1 1 . 2 Treads 1 | . . . . 1 . . . Leg 4 | 2 1 . . . . . 1 Wheel 2 | . . . . . 1 . 1 Hover . | . . . . . . . . Flight . | . . . . . . . . Utility 10 | 1 1 . 1 5 1 . 1 Device 4 | . 1 . . 2 . . 1 Storage 2 | 1 . . . . 1 . . Processor 2 | . . . 1 1 . . . Hackware 2 | . . . . 2 . . . Protection . | . . . . . . . . Artifact . | . . . . . . . . Weapon 11 | 2 2 . . 2 . . 5 Energy Gun 9 | 1 2 . . 2 . . 4 Energy Cannon . | . . . . . . . . Ballistic Gun 1 | 1 . . . . . . . Ballistic Cannon . | . . . . . . . . Launcher . | . . . . . . . . Special Weapon . | . . . . . . . . Impact Weapon 1 | . . . . . . . 1 Slashing Weapon . | . . . . . . . . Piercing Weapon . | . . . . . . . . Special Melee Weapon . | . . . . . . . . Unidentified Prototypes . | . . . . . . . . Parts Lost 24 | . 1 . . . 16 . 7 Power 4 | . 1 . . . 3 . . Propulsion 5 | . . . . . 4 . 1 Utility 7 | . . . . . 5 . 2 Weapon 8 | . . . . . 4 . 4 Highest Loss Streak 11 | . 1 . . . 11 . 5 To Critical Strikes 1 | . . . . . . . 1 Average Backups 5 | 1 4 6 7 4 5 5 3 Power . | . . . . . 1 1 . Propulsion . | . 1 1 1 1 . . . Utility . | . . . 1 . 1 1 1 Weapon 3 | . 2 5 5 3 3 3 1 Tool/Special . | . . . . . . . . Unused Backups 2 | . . . 2 . . . . Power . | . . . . . . . . Propulsion . | . . . . . . . . Utility 1 | . . . 1 . . . . Weapon 1 | . . . 1 . . . . Tool/Special . | . . . . . . . . Average Slot Usage (%) 72 | . 89 100 100 77 52 17 21 Engine 8 | . 14 14 14 5 1 . 1 Leg 16 | . 28 28 28 11 3 . . Device 4 | . 3 14 3 8 3 . . Storage 8 | . 14 14 14 5 5 . . Processor 7 | . . . 10 8 11 11 8 Hackware 2 | . . . . 5 7 5 3 Energy Gun 18 | . 17 28 28 22 11 . 3 Ballistic Gun 2 | . 10 . . . . . . Peak Build Rating 50 | 6 11 11 13 50 50 11 33 Average Rating 17 | 4 7 10 12 36 26 11 15 On Entrance 14 | . 6 10 11 13 50 11 11 Avg Prop Armor Cover (%) 8 | . . . . 7 11 . . Naked Turns . | . . . . . . . . Heaviest Build 40 | 11 18 16 16 40 40 . 19 Greatest Support 20 | 20 20 20 20 20 20 3 18 Greatest Overweight (x) 13 | . . . . 1 13 . 4 Average Overweight (x) . | . . . . 1 . . . Largest Inventory Capacity 8 | 8 8 8 8 8 8 5 5 Average Capacity 7 | 6 8 8 8 8 7 5 5 Most Carried 8 | 3 8 8 8 7 6 5 5 Average Carried 5 | 1 4 7 7 4 5 5 3 Final Capacity 8 | 8 8 8 8 8 5 5 5 Final Carried 8 | 3 6 8 8 6 5 5 4 Class Distribution -------------------- 78% | Mutant 16% | Gunner 5% | Hacker-Gunner Dominant Class ---------------- Mutant | -10/Materials Mutant | -10/Subcaves Mutant | -7/Scraptown Gunner | -5/Factory Mutant | -5/Upper Caves Mutant | -5/Upper Caves Mutant | -4/Factory Resources | -11 -10 -10 -7 -5 -5 -5 -4 ----------- Run | Yrd Mat Sub Scr Fac Upp Upp Fac Matter Collected 472 | 116 162 . 61 . 76 . 57 Remotely . | . . . . . . . . Salvage Created 217 | . 162 . . . . . 55 Parts 6 | . 4 . . . . . 2 Haulers Intercepted . | . . . . . . . . Recyclers Shooed . | . . . . . . . . Parts Field Recycled . | . . . . . . . . Retrieved Matter . | . . . . . . . . Parts Self-Destructed 1 | . . . . . 1 . . Prevented 2 | . . . . . 2 . . Parts Restored . | . . . . . . . . Kills | -11 -10 -10 -7 -5 -5 -5 -4 ------- Run | Yrd Mat Sub Scr Fac Upp Upp Fac Combat Hostiles Destroyed 5 | . 4 . . . . . 1 Melee 1 | . . . . . . . 1 Guns 4 | . 4 . . . . . . Classes Destroyed 3 | . 1 . . . . . 2 Worker 2 | . . . . . . . 2 Swarmer 1 | . . . . . . . 1 Grunt 4 | . 4 . . . . . . Best Kill Streak 1 | . 1 . . . . . 1 Combat Bots Only 1 | . 1 . . . . . 1 Max Kills in Single Turn 1 | . 1 . . . . . 1 Gunslinging . | . . . . . . . . Exploded . | . . . . . . . . Melee 1 | . . . . . . . 1 Uniques/NPCs Destroyed . | . . . . . . . . Combat | -11 -10 -10 -7 -5 -5 -5 -4 -------- Run | Yrd Mat Sub Scr Fac Upp Upp Fac Hostile Shots Fired 307 | . 36 . . . 131 . 140 Missed 106 | . 5 . . . 40 . 61 Hits 201 | . 31 . . . 91 . 79 Projectile 201 | . 31 . . . 91 . 79 Critical Strikes 16 | . 1 . . . 8 . 7 Damage Taken 3770 | . 371 . . . 1752 . 1647 Core 1895 | . 67 . . . 677 . 1151 Absorbed by Shields 56 | . 56 . . . . . . Core Remaining (%) 68 | 100 . . 73 . . 32 . Volleys Fired 37 | . 30 . . . 3 . 4 Largest 4 | . 2 . . . 4 . 1 Hottest 260 | . 130 . . . 260 . 65 Shots Fired 76 | . 60 . . . 12 . 4 Gun 76 | . 60 . . . 12 . 4 Cannon . | . . . . . . . . Launcher . | . . . . . . . . Special . | . . . . . . . . Kinetic 24 | . 24 . . . . . . Thermal 52 | . 36 . . . 12 . 4 Explosive . | . . . . . . . . Electromagnetic . | . . . . . . . . Robot Hit Streak 19 | . 19 . . . 11 . 6 Robot Miss Streak 3 | . 3 . . . 1 . . Penetration Max . | . . . . . . . . Secondary Targets . | . . . . . . . . Shots Hit Robots 52 | . 32 . . . 11 . 9 Core Hits 19 | . 11 . . . 4 . 4 Critical Kills 1 | . . . . . . . 1 Critical Parts Destroyed . | . . . . . . . . Critical Strikes 4 | . 2 . . . . . 2 Burn 3 | . 2 . . . . . 1 Smash 1 | . . . . . . . 1 Melee Attacks 8 | . . . . . . . 8 Impact 8 | . . . . . . . 8 Slashing . | . . . . . . . . Piercing . | . . . . . . . . Sneak Attacks . | . . . . . . . . Combat Hostiles . | . . . . . . . . Follow-up Attacks . | . . . . . . . . Damage Inflicted 1025 | . 408 . . . 185 . 432 Guns 640 | . 408 . . . 184 . 48 Cannons . | . . . . . . . . Explosions . | . . . . . . . . Melee 312 | . . . . . . . 312 Ramming 73 | . . . . . 1 . 72 Kinetic 93 | . 93 . . . . . . Thermal 547 | . 315 . . . 184 . 48 Explosive . | . . . . . . . . Electromagnetic . | . . . . . . . . Impact 312 | . . . . . . . 312 Slashing . | . . . . . . . . Piercing . | . . . . . . . . Highest Corruption 4 | . . . . . 3 3 4 Average Corruption 3 | . . . . . 2 3 4 Corruption Purged . | . . . . . . . . Corruption Blocked . | . . . . . . . . Overload Shots . | . . . . . . . . Overflow Damage 91 | . . . . . . . 91 Projectiles . | . . . . . . . . Explosions . | . . . . . . . . Melee 91 | . . . . . . . 91 Knockbacks 2 | . . . . . . . 2 Impact 2 | . . . . . . . 2 Kinetic . | . . . . . . . . Secondary . | . . . . . . . . Self-Inflicted Damage 33 | . . . . . . . 33 Shots . | . . . . . . . . Rammed 8 | . . . . . . . 8 Targets Rammed 9 | . . . . . 1 . 8 Kicked 1 | . . . . . 1 . . Crushed . | . . . . . . . . Highest Temperature 475 | . 411 . . . 475 . 21 Average Temperature 144 | . 109 . . . 278 . 8 Received Heat Transfer 1073 | . 219 . . . 621 . 233 Effects 1 | . 1 . . . . . . Shutdowns 1 | . 1 . . . . . . Siege Activations . | . . . . . . . . Martial Activations . | . . . . . . . . Shielding Activations . | . . . . . . . . Robots Disrupted . | . . . . . . . . Combat Hostiles . | . . . . . . . . Robots Corrupted . | . . . . . . . . Combat Hostiles . | . . . . . . . . Parts Fried 1 | . . . . . . . 1 Impact Corruptions 3 | . . . . . . . 3 Robots Melted . | . . . . . . . . Combat Hostiles . | . . . . . . . . Parts Melted 1 | . 1 . . . . . . Heat Transferred 1591 | . 962 . . . 444 . 185 Parts Sabotaged . | . . . . . . . . Parts Stolen . | . . . . . . . . Parts Stripped . | . . . . . . . . Power Chain Reactions . | . . . . . . . . Alert | -11 -10 -10 -7 -5 -5 -5 -4 ------- Run | Yrd Mat Sub Scr Fac Upp Upp Fac Maximum Alert Level . | . . . . . . . . Low Security (%) 100 | 100 100 . . 100 . . 100 Level 1 . | . . . . . . . . Level 2 . | . . . . . . . . Level 3 . | . . . . . . . . Level 4 . | . . . . . . . . Level 5 . | . . . . . . . . High Security . | . . . . . . . . Max Security . | . . . . . . . . Peak Influence 120 | . 36 . . . . . 120 Initial . | . . . . . . . . Average 10 | . 12 . . . . . 19 Influence Increases 473 | . 141 . . . 105 . 227 Destroy 0b10 Robot/C 100 | . 80 . . . . . 20 Destroy 0b10 Robot/NC 10 | . . . . . . . 10 Destroy Leader 20 | . 20 . . . . . . Successful Hack 25 | . 25 . . . . . . Destroy Structure 3 | . 1 . . . . . 2 Partial Spotted 15 | . . . . . . . 15 Lose Combat Pursuer 300 | . 15 . . . 105 . 180 Influence Decreases 373 | . 136 5 . . 105 . 127 Entered New Map 3 | . . 3 . . . . . Time Decay 275 | . 126 2 . . 55 . 92 Lost Part 95 | . 10 . . . 50 . 35 Squads Dispatched 3 | . . . . 1 . . 2 Investigation . | . . . . . . . . Extermination 1 | . . . . . . . 1 Reinforcement 2 | . . . . 1 . . 1 Assault . | . . . . . . . . Garrison . | . . . . . . . . Intercept . | . . . . . . . . Searches Triggered . | . . . . . . . . Construction Impeded . | . . . . . . . . Haulers Reinforced . | . . . . . . . . Active Scanning Responses . | . . . . . . . . Cargo Convoy Interrupts . | . . . . . . . . Stealth | -11 -10 -10 -7 -5 -5 -5 -4 --------- Run | Yrd Mat Sub Scr Fac Upp Upp Fac Distress Signals 1 | . 1 . . . . . . Communications Jammed . | . . . . . . . . Distress Signals . | . . . . . . . . Times Spotted 42 | . 8 . . . 11 . 23 Peak Tracking Total 10 | . 2 . . . 5 . 10 Tactical Retreats 10 | . 1 . . . 2 . 7 Traps | -11 -10 -10 -7 -5 -5 -5 -4 ------- Run | Yrd Mat Sub Scr Fac Upp Upp Fac Traps Triggered . | . . . . . . . . Indirectly . | . . . . . . . . Trap Hack Attempts . | . . . . . . . . Triggered . | . . . . . . . . Disarmed . | . . . . . . . . Reprogrammed . | . . . . . . . . Reused . | . . . . . . . . Traps Extracted . | . . . . . . . . Installed . | . . . . . . . . Triggered . | . . . . . . . . Machines | -11 -10 -10 -7 -5 -5 -5 -4 ---------- Run | Yrd Mat Sub Scr Fac Upp Upp Fac Machines Disabled . | . . . . . . . . Max in Single Turn . | . . . . . . . . Machines Repaired . | . . . . . . . . Machines Dismantled . | . . . . . . . . Machines Sabotaged . | . . . . . . . . Overloaded Fab Kills . | . . . . . . . . Hacking | -11 -10 -10 -7 -5 -5 -5 -4 --------- Run | Yrd Mat Sub Scr Fac Upp Upp Fac Machines Accessed 11 | . 4 . 1 2 . . 4 Terminals 7 | . 4 . . 1 . . 2 Fabricators . | . . . . . . . . Repair Stations . | . . . . . . . . Recycling Units 3 | . . . . 1 . . 2 Scanalyzers . | . . . . . . . . Garrison Access . | . . . . . . . . Total Hacks 24 | . 6 . 9 4 . . 5 Successful 18 | . 5 . 9 1 . . 3 Failed 6 | . 1 . . 3 . . 2 Catastrophic 1 | . . . . 1 . . . Database Lockouts . | . . . . . . . . Manual 3 | . 3 . . . . . . Terminals 10 | . 6 . . 2 . . 2 Fabricators . | . . . . . . . . Repair Stations . | . . . . . . . . Recycling Units 5 | . . . . 2 . . 3 Scanalyzers . | . . . . . . . . Garrison Access . | . . . . . . . . Terminal Hacks 16 | . 5 . 9 . . . 2 Record 9 | . . . 9 . . . . Prototype ID Bank 1 | . 1 . . . . . . Terminal Index 1 | . 1 . . . . . . Zone Layout 5 | . 3 . . . . . 2 Fabricator Hacks . | . . . . . . . . Repair Station Hacks . | . . . . . . . . Recycling Unit Hacks 2 | . . . . 1 . . 1 Retrieve Components 2 | . . . . 1 . . 1 Scanalyzer . | . . . . . . . . Garrison Access Hacks . | . . . . . . . . Unauthorized Hacks . | . . . . . . . . Terminals . | . . . . . . . . Fabricators . | . . . . . . . . Repair Stations . | . . . . . . . . Recycling Units . | . . . . . . . . Scanalyzers . | . . . . . . . . Garrison Access . | . . . . . . . . Data Cores Recovered . | . . . . . . . . Used . | . . . . . . . . Hacking Detections 6 | . 2 . . 2 . . 2 Full Trace Events . | . . . . . . . . Feedback Events . | . . . . . . . . Feedback Blocked . | . . . . . . . . Robot Schematics Acquired . | . . . . . . . . Robots Built . | . . . . . . . . Authchips . | . . . . . . . . Time . | . . . . . . . . Total Robot Build Rating . | . . . . . . . . Part Schematics Acquired . | . . . . . . . . Parts Built . | . . . . . . . . Authchips . | . . . . . . . . Time . | . . . . . . . . Total Part Build Rating . | . . . . . . . . Part Studies Acquired . | . . . . . . . . Parts Repaired . | . . . . . . . . Time . | . . . . . . . . Parts Recycled . | . . . . . . . . Recycled Matter . | . . . . . . . . Retrieved Matter . | . . . . . . . . Retrieved Components 4 | . . . . 3 . . 1 Parts Scanalyzed . | . . . . . . . . Part Schematics Acquired . | . . . . . . . . Parts Damaged . | . . . . . . . . Bothacking | -11 -10 -10 -7 -5 -5 -5 -4 ------------ Run | Yrd Mat Sub Scr Fac Upp Upp Fac Used RIF Installer . | . . . . . . . . Robots Hacked . | . . . . . . . . Non-combat . | . . . . . . . . Combat . | . . . . . . . . Robot Hacks Applied . | . . . . . . . . Relay Couplers Released . | . . . . . . . . Fabnet Peak Effective % . | . . . . . . . . Robots Rewired . | . . . . . . . . Allies Hacked . | . . . . . . . . Hacks Repelled . | . . . . . . . . Allies | -11 -10 -10 -7 -5 -5 -5 -4 -------- Run | Yrd Mat Sub Scr Fac Upp Upp Fac Total Allies . | . . . . . . . . Largest Group . | . . . . . . . . Highest-Rated Group . | . . . . . . . . Highest-Rated Ally . | . . . . . . . . Total Orders . | . . . . . . . . Ally Attacks . | . . . . . . . . Total Damage . | . . . . . . . . Kills . | . . . . . . . . Allies Corrupted . | . . . . . . . . Allies Melted . | . . . . . . . . Intel | -11 -10 -10 -7 -5 -5 -5 -4 ------- Run | Yrd Mat Sub Scr Fac Upp Upp Fac Active Infowar (turns) . | . . . . . . . . Robot Analysis Total . | . . . . . . . . Derelict Logs Recovered 1 | . . . . . 1 . . Drone Launches . | . . . . . . . . Drone Recoveries . | . . . . . . . . Exploration | -11 -10 -10 -7 -5 -5 -5 -4 ------------- Run | Yrd Mat Sub Scr Fac Upp Upp Fac Turns Passed 2033 | 47 392 52 587 329 263 7 356 Spaces Moved 1632 | 33 205 43 472 167 262 14 436 Core 496 | 6 . . . . 177 14 299 Treads . | . . . . . . . . Legs 957 | 27 205 43 472 167 20 . 23 Wheels 179 | . . . . . 65 . 114 Hover . | . . . . . . . . Flight . | . . . . . . . . Fastest Speed 50 | 50 120 120 120 190 50 50 50 Average Speed 105 | 107 120 120 120 190 83 50 64 Slowest Speed 700 | 120 120 120 120 190 700 50 250 Overloaded Moves . | . . . . . . . . Propulsion Burnouts . | . . . . . . . . Robots Hopped . | . . . . . . . . Potential Cave-ins . | . . . . . . . . Cave-ins Triggered . | . . . . . . . . Exploration Rate (%) 21 | 3 33 6 46 5 57 4 15 Regions Visited 7 Branch Regions 4 Pre-discovered Areas . | . . . . . . . . Known Exits Taken . | . . . . . . . . Unknown Exits Taken 7 | 1 1 1 1 1 1 1 . Scrap Searched 2 | . . . 1 . 1 . . Spaces Dug . | . . . . . . . . Terrain Destroyed . | . . . . . . . . Melee . | . . . . . . . . Projectile . | . . . . . . . . AOE . | . . . . . . . . Terrain Rammed . | . . . . . . . . Walls Destroyed . | . . . . . . . . Machines Disabled . | . . . . . . . . Actions | -11 -10 -10 -7 -5 -5 -5 -4 --------- Run | Yrd Mat Sub Scr Fac Upp Upp Fac Total 1848 | 41 295 43 494 177 293 13 492 Wait 104 | . 48 . 14 . 25 . 17 Move 1625 | 32 204 42 471 166 261 13 436 Hop . | . . . . . . . . Pick Up 14 | 3 4 1 4 2 . . . Fast Attach 21 | 6 3 . 1 5 2 . 4 Attach 14 | . 1 . . 4 1 . 8 Detach 7 | . . . . . . . 7 Swap 2 | . 2 . . . . . . Drop 7 | . 3 . 4 . . . . Fire 37 | . 30 . . . 3 . 4 Melee 8 | . . . . . . . 8 Ram 8 | . . . . . . . 8 Kick 1 | . . . . . 1 . . Crush . | . . . . . . . . Escape Stasis . | . . . . . . . . Rewire . | . . . . . . . . Trap . | . . . . . . . . Miscellaneous . | . . . . . . . . Route ------- -11/Scrapyard -10/Materials (discovered 2 exits: [Mat] / [*Sub]) -10/Subcaves -7/Scraptown -5/Factory -5/Upper Caves -5/Upper Caves -4/Factory History --------- Turn | Location | Event 4 | -11/Scrapyard | Discovered new exit (range 15) 48 | -11/Scrapyard | Entered Materials 314 | -10/Materials | Build established: Mutant 390 | -10/Materials | Discovered new exit (range 15) 434 | -10/Materials | Discovered new exit (range 4) 440 | -10/Materials | Entered Subcaves 441 | -10/Subcaves | Approached by a straggling Scientist 478 | -10/Subcaves | Scientist uncovered a shortcut to Scraptown 492 | -10/Subcaves | Entered Scraptown 848 | -7/Scraptown | Visited Shadow of the Wyrm 871 | -7/Scraptown | Visited TADAMA 921 | -7/Scraptown | Discovered new exit (range 7) 999 | -7/Scraptown | Received an X-ray algorithm 1079 | -7/Scraptown | Entered Factory 1079 | -5/Factory | Evolved 10 slots: Power x1, Propulsion x2, Utility x5, Weapon x2 1178 | -5/Factory | Discovered new exit (range 6) 1408 | -5/Factory | Entered Upper Caves 1554 | -5/Upper Caves | Lost 11 parts (3p3n3u2w) 1604 | -5/Upper Caves | Core integrity fell below 50% 1628 | -5/Upper Caves | Lost 5 parts (1n2u2w) 1631 | -5/Upper Caves | Learned Factory emergency access door positions 1668 | -5/Upper Caves | Attracted the attention of an 0b10 checkpoint 1669 | -5/Upper Caves | Discovered new exit (range 5) 1671 | -5/Upper Caves | Entered another Upper Caves area 1671 | -5/Upper Caves | Discovered new exit (range 14) 1678 | -5/Upper Caves | Entered Factory 1678 | -4/Factory | Evolved 2 slots: Weapon x2 1760 | -4/Factory | Spotted B-86 Titan 1958 | -4/Factory | Core integrity fell below 50% 1986 | -4/Factory | Lost 5 parts (1n2u2w) 2019 | -4/Factory | Core integrity fell below 20% 2034 | -4/Factory | Destroyed by P-70 Sage with Tesla Rifle Last Messages --------------- 02006_ Slug penetrates Wall. 02007_ Acquired 15 matter. 02019_ Penetrated by Slug. 02024_ H-77 Assassin knocked back. 02026_ Slug penetrates Wall. 02027_ H-77 Assassin knocked back. 02029_ H-77 Assassin IFF system glitched. 02029_ Slug penetrates P-70 Sage. 02029_ Slug penetrates Wall. 02030_ P-70 Sage resets H-77 Assassin, system corruption cleaned. 02031_ Destroyed Imp. Targeting Computer. 02031_ H-77 Assassin system corrupted by crushing effect. 02032_ Penetrated by Slug. 02032_ Critical hit (Destroy). 02032_ Power Maul destroyed. 02032_ Slug penetrates Wall. 02032_ P-70 Sage resets H-77 Assassin, system corruption cleaned. Map ----- +----------------------------------------------------+ | ?????????????????????????????????????? | | ?????????????????????????????????????? | | ?????????????????????????????????????? | | ?????????????????????????????????????? | | ?????????????????????????????????????? | | ?????????????????????????????????????? | | ?????????????????????????????????????? | | ?????????????????????????????????????? | | ?????????????????????????????????????? | | ?????????????????????????????????????? | | ??????##################?????????????? | | ??????# + #?????????????? | | ??????# ####### """" #?????????????? | | ??????# #?????# """" #?????????????? | | ??????# #?????# """" #?????????????? | | ???####"###???# """" #?????????????? | | ???# !#???# """" #?????????????? | | ???#! #???# """" #?????????????? | | ???# / #???# """" #?????????????? | | ???#] ! #???# % #?????????????? | | ???# #???#####+####?????????????? | | ???# #???????# #????????????????? | | ???####+###???????# #????????????????? | | ????# ######### #????????????????? | | ????# hh #??????????????### | | ????# " @ #??????????????# | | ????# p #??????????????# | | ????# p ######### #??????????????# | | ????### ###???????# #??????######### | | ??????# #?????????#H#?????? # | | ??????# #?????????# #????# """ # | | ??????# #?????????# #????# """ # | | ??????# ??????????# #????# """ # = | | ??????# ??????????# #????# " # | | ??????# ??????????# #????#] T ### | | ??????# ????????### "##??# * " #?? | | ??????# ?######## %#?## ! #?? | | ??????# ###"########+### | | ??????+ % %%[ | | ??????# #####""##### ### | | ??????###+####+## #???####???# #?? | | ????????????????###+###??????????# #?? | | ?????????????????????????????????# #?? | | ?????????????????????????????????# #?? | | ?????????????????????????????????# #?? | | ?????????????????????????????????# #?? | | ?????????????????????????????????? ??? | | ?????????????????????????????????? ??? | | ?????????????????????????????????? ??? | | ?????????????????????????????????? ??? | +----------------------------------------------------+ Best States ------------- Heat Dissipation 54 Energy Generation 32 Energy Capacity 350 Matter Stores 309 Matter Capacity 350 Sight Range 16 Terrain Scan Density 10 Power Amplification 30 Evasion (%) 55 Targeting Accuracy 16 Recoil Reduction 1 Offensive Hacking 22 Item Schematics ----------------- None Robot Schematics ------------------ None Fabricated ------------ Nothing Repaired ---------- Nothing Studied --------- None Alien Tech Used ----------------- None Achievements -------------- Civilization 2243 Nice Directions, Buddy Challenges ------------ None Game ------ Seed FusionFusionFacilitator Manual? 0 Play Time 00:19:22 Cumulative 63.4 hours Start 2026.09.24 @ 19:16:45 End 2026.09.24 @ 19:34:54 Sessions 1 Manual Loads 0 Difficulty Rogue Special Mode None Game No. 105 Rogue 86 Adventurer 18 Explorer 1 Win Type - Total 4 Types 4/0/0/0/0/0/0/0/0/0 Lore% 16 Gallery% 36 Achievement% 25 Wizard Run 0 Options --------- Layout 1 ASCII 0 Keyboard 0 Movement Arrows Keybinds 0 Fullscreen 2 Font 24/Smallcaps Map View 50x35 Zoom Use 0% Tactical HUD 1 Map Filters NONE Filters NONE Steam 1 RUN: 167c0c86-e964-478d-bca3-db0b3ebf41fa